[Event "4NCL Div 2 2024-25"]
[Site "England"]
[Date "2025.01.25"]
[Round "3.29"]
[White "Turner, Lewis A"]
[Black "Sivanandan, Bodhana"]
[Result "0-1"]
[Annotator "TA"]
[ECO "C43"]
[WhiteElo "1984"]
[BlackElo "2082"]
[PlyCount "116"]
[EventDate "2024.11.23"]
[EventType "team-tourn"]
[EventCountry "ENG"]
[SourceTitle "playchess.com"]
[Source "ChessBase"]
[SourceQuality "1"]
[TimeControl "40/6000+30:3000+30"]

{[%evp 15,116,33,31,34,37,35,60,52,37,58,55,63,79,43,45,-12,-9,-20,-17,-70,-38,-36,-32,-28,-39,-35,-27,-58,-32,-202,-191,-329,-341,-333,-104,-91,-93,-79,-112,-138,-138,-133,-137,-160,-159,-157,-150,-205,-118,-116,-110,-120,-108,-103,-111,-117,-111,-98,-110,-112,-94,-96,-94,-91,-91,-91,-91,-91,-91,-141,-94,-177,-167,-202,-77,-226,-193,-206,-188,-199,-192,-192,-192,-200,-178,-210,-109,-207,-216,-427,-416,-350,-324,-418,-380,-437,-411,-625,-554,-766,-760,-29982,-727]} 1. e4 {[%emt 0:10:03]} e5 {[%emt 0:10:43]} 2. Nf3 {[%emt 0:00:05]} Nf6 {[%emt 0:00:25]} 3. d4 {[%emt 0:00:15]} Nxe4 {[%emt 0:00:20]} 4. Bd3 {[%emt 0:00:08]} d5 {[%emt 0:00:40]} 5. Nxe5 {[%emt 0:00:08]} Nd7 {[%emt 0:00:39]} 6. Nxd7 {[%emt 0:00:09]} Bxd7 {[%emt 0:00:20][%cal Bc8d7,Bd7c6,Bc6e4][%mdl 32]} 7. O-O {[%emt 0:00:11]} Bd6 {[%emt 0:00:41]} 8. Qh5 {[%emt 0:00:23]} O-O {[%emt 0:04:36]} 9. Qxd5 {[%emt 0:00:39] C43: Petroff Defence: 3 d4.} Bc6 {[%emt 0:01:01] Black sacrificed a pawn} 10. Qh5 {[%emt 0:00:13]} Re8 {[%emt 0:05:35]} 11. Nc3 {[%emt 0:11:14] White is slightly better.} g6 {[%emt 0:01:26]} 12. Qh3 {[%emt 0:07:31]} Nxc3 {[%emt 0:05:22]} 13. bxc3 {[%emt 0:03:01]} Be4 $146 {[%emt 0:05:17]} (13... h5 14. f4 f5 15. Bd2 Qf6 16. Qg3 Kh7 17. Qg5 Qg7 18. Rae1 Be7 19. Qg3 Bd5 {0-1 Navarro Cia,M (2273)-Daskalov,D (2310) BCF-chT1a 1718 (4NCL) 2017 (7.45)}) 14. c4 {[%emt 0:11:51]} Qf6 {[%emt 0:03:16]} 15. c5 {[%emt 0:09:03]} (15. Be3 $14) 15... Bxc5 $11 {[%emt 0:02:16]} (15... Qxd4 $2 16. Be3 Qa4 17. Bxe4 (17. cxd6 cxd6 18. Rfd1 Bxd3 $18) 17... Rxe4 18. cxd6 $18) 16. c3 {[%emt 0:04:30] Bxe4 would now be deadly.} Bd6 {[%emt 0:03:09]} 17. Bb2 {[%emt 0:08:41]} (17. a4 $11) 17... Qf4 {[%emt 0:02:05] Black has more active pieces.} 18. Bxe4 {[%emt 0:02:30]} Rxe4 {[%emt 0:02:34]} 19. Bc1 {[%emt 0:00:32]} Qf6 {[%emt 0:00:33]} 20. Qd3 {[%emt 0:39:23]} Rae8 {[%emt 0:00:59]} 21. Be3 {[%emt 0:00:00]} Qh4 $40 {[%emt 0:01:34][%csl Gd6][%cal Rh4h2][%mdl 128] Black attacks Black mounts an attack.} (21... Bf4 {simplifies} 22. Bxf4 Qxf4 23. g3 Qd6) 22. g3 $2 {[%emt 0:00:00]} (22. h3 $15) 22... Qh3 $19 {[%emt 0:00:41]} 23. Bg5 {[%emt 0:00:00] Prevents Rh4.} (23. Qd2 $142) 23... h6 $1 {[%emt 0:03:03]} 24. Bf6 {[%emt 0:00:00]} R4e6 $2 {[%emt 0:08:17]} (24... Rf4 $19 25. Qb5 c6 (25... Rxf6 $2 26. Qxe8+ Kg7 27. Rab1 $18) 26. Qxb7 Rxf6 27. Qxc6 Rc8) 25. Qf3 $17 {[%emt 0:00:00][%cal Oa2a4]} Qf5 {[%emt 0:05:21]} 26. Qxf5 {[%emt 0:00:00]} gxf5 {[%emt 0:00:14]} 27. Be5 {[%emt 0:00:00]} Bxe5 {[%emt 0:00:12]} 28. dxe5 {[%emt 0:00:00]} Rxe5 {[%emt 0:00:10][%mdl 4096] Endgame KRR-KRR. Black is a pawn up.} 29. Rab1 {[%emt 0:00:00]} b6 {[%emt 0:00:22]} 30. Rfd1 {[%emt 0:00:00]} Rc5 {[%emt 0:00:27][%cal Oe8e2]} 31. Rd3 {[%emt 0:00:00] [#]} (31. Rbc1 $17 {is a better defense.}) 31... f4 {[%emt 0:01:20]} 32. Rb4 {[%emt 0:00:00]} fxg3 {[%emt 0:00:41]} 33. hxg3 {[%emt 0:00:00]} h5 {[%emt 0:04:16]} 34. Kf1 {[%emt 0:00:00]} Re7 {[%emt 0:01:19]} 35. g4 {[%emt 0:00:00]} Kg7 {[%emt 0:01:10]} 36. gxh5 {[%emt 0:00:00]} Rxh5 {[%emt 0:00:15]} 37. Rc4 {[%emt 0:00:00]} c5 {[%emt 0:02:52]} 38. a4 {[%emt 0:00:00]} a5 {[%emt 0:01:06]} 39. Rf4 {[%emt 0:00:00]} Rhe5 {[%emt 0:01:42]} 40. Rg3+ {[%emt 0:00:00]} Kf8 {[%emt 0:00:40]} 41. Rd3 {[%emt 0:45:20]} Ke8 {[%emt 0:56:09]} 42. Rh4 {[%emt 0:02:13]} ({Better is} 42. Kg2) 42... Rd7 {[%emt 0:01:53]} (42... Re1+ $142 43. Kg2 R7e6 44. Rh8+ Ke7) 43. Rg3 {[%emt 0:08:07]} (43. Re3 $17 Rxe3 44. fxe3) 43... Ke7 $19 {[%emt 0:03:21]} 44. Rh6 {[%emt 0:04:15]} Re6 {[%emt 0:01:09]} (44... Rd1+ $19 {and Black stays clearly on top.} 45. Kg2 Re6) 45. Rh4 {[%emt 0:00:00]} (45. Rxe6+ $17 Kxe6 46. Ke2) 45... Rd2 {[%emt 0:00:00]} 46. Rf4 {[%emt 0:00:00]} Rd1+ {[%emt 0:00:00]} 47. Kg2 {[%emt 0:00:00]} Rg6 {[%emt 0:00:00]} 48. Re4+ {[%emt 0:00:00] [#]} Kf6 $1 {[%emt 0:00:00]} 49. Rxg6+ {[%emt 0:00:00]} fxg6 {[%emt 0:00:00] KR-KR. Black is a pawn up.} 50. Re8 {[%emt 0:00:00] [#]} Rd6 {[%emt 0:00:00]} (50... Rb1 $1 $19 51. Kf3 Rb3) 51. Re3 {[%emt 0:00:00]} (51. f3 $17) 51... Kf5 {[%emt 0:00:00]} 52. Kf3 $2 {[%emt 0:00:00]} (52. Rf3+ Ke5 53. Rg3) 52... c4 {[%emt 0:00:00]} 53. Re8 {[%emt 0:00:00]} Rd3+ {[%emt 0:00:00]} 54. Ke2 {[%emt 0:00:00]} Rxc3 {[%emt 0:00:00]} 55. Rc8 {[%emt 0:00:00]} Ke4 {[%emt 0:00:00]} 56. Rc6 {[%emt 0:00:00]} (56. Kd2 $142 Rd3+ 57. Kc2) 56... Rc2+ {[%emt 0:00:00]} 57. Kd1 {[%emt 0:00:00]} Rxf2 {[%emt 0:00:00] and ...Kd3 would now be decisive} 58. Rxc4+ {[%emt 0:00:00]} Ke5 {[%emt 0:29:19] Weighted Error Value: White=0.51/Black=0.17 (very precise)   Loses game:     	White=1     	---        Missed win:     	---       	Black=1      Mistake:       	White=10    	Black=4      Inaccurate:     	White=4     	Black=2      OK:         	White=17    	Black=20     Best:        	White=3     	Black=6      Strong:       	---       	Black=2} (58... Kd3 $142 59. Ke1 Kxc4 60. Kxf2 g5 61. Kg3 Kb4 62. Kh3 g4+ (62... Kxa4 $2 63. Kg4 $19) 63. Kxg4 Kxa4 64. Kg5 Kb5 65. Kh4 Kc5 66. Kg5 a4 67. Kh4 a3 68. Kg5 a2 69. Kh5 a1=Q (69... a1=B {leads to mate.} 70. Kg4 Kc4 71. Kh4 b5 72. Kh3 b4 73. Kg4 b3 74. Kh3 b2 75. Kh2 b1=Q 76. Kg3 Qf5 77. Kg2 Qg4+ 78. Kf2 Bd4+ 79. Ke1 Kd3 80. Kf1 Qg1#) 70. Kg5 Qa4 71. Kf6 Qf4+ 72. Kg6 Kd5 73. Kg7 Ke6 74. Kg8 Qg5+ 75. Kf8 b5 76. Ke8 Qg8#) 0-1

[Event "4NCL Div 2 2024-25"]
[Site "England"]
[Date "2025.01.25"]
[Round "3.30"]
[White "Manmay Chopra"]
[Black "Taylor, William J"]
[Result "1-0"]
[Annotator "TA"]
[ECO "A05"]
[WhiteElo "2217"]
[BlackElo "1994"]
[PlyCount "81"]
[EventDate "2024.11.23"]
[EventType "team-tourn"]
[EventCountry "ENG"]
[SourceTitle "playchess.com"]
[Source "ChessBase"]
[SourceQuality "1"]
[TimeControl "40/6000+30:3000+30"]

{[%evp 13,81,-14,4,-36,-3,-32,-23,-38,-42,-41,-33,-42,-20,-46,-19,-9,9,0,0,-2,4,-13,18,17,54,39,70,39,40,37,63,32,43,25,66,67,109,114,260,112,215,207,201,225,216,203,240,236,530,207,198,189,283,276,291,265,662,675,670,629,851,835,1027,909,1700,1657,1539,1468,1926,1873]} 1. Nf3 {[%emt 0:10:35]} d5 {[%emt 0:10:10]} 2. g3 {[%emt 0:00:09]} c5 {[%emt 0:00:28]} 3. Bg2 {[%emt 0:00:05]} Nc6 {[%emt 0:00:06]} 4. O-O {[%emt 0:00:44]} Nf6 {[%emt 0:07:16]} 5. d3 {[%emt 0:03:43]} g6 {[%emt 0:00:16]} 6. Nc3 {[%emt 0:01:19]} Bg7 {[%emt 0:00:24]} 7. e4 {[%emt 0:00:07]} O-O {[%emt 0:09:46]} 8. h3 {[%emt 0:02:06] A05: Réti Opening: 1 Nf3 Nf6.} e6 {[%emt 0:27:14]} 9. Bd2 {[%emt 0:13:56]} b6 {[%emt 0:00:28]} 10. Re1 $146 {[%emt 0:00:30] Black has an edge.} (10. Qc1 Ba6 11. Re1 d4 12. Ne2 Qc7 13. Bh6 Rfd8 14. b3 Bb7 15. Qg5 Qe7 16. Nh2 {1-0 Petre,N (2405)-Gneiss,K (2109) AUT-chT2M 0809 2008 (4.3)}) 10... d4 {[%emt 0:11:27]} 11. Ne2 {[%emt 0:01:07][%cal Ob2b4]} Bb7 {[%emt 0:00:16]} 12. Nh2 {[%emt 0:00:14]} b5 {[%emt 0:06:30]} 13. b3 {[%emt 0:02:26]} Qd7 {[%emt 0:10:48][%cal Oc5c4]} 14. f4 {[%emt 0:00:32]} Rfd8 {[%emt 0:00:48]} 15. g4 {[%emt 0:00:30]} c4 {[%emt 0:02:46]} 16. Rf1 {[%emt 0:01:39]} a5 {[%emt 0:03:03]} 17. a3 {[%emt 0:02:34] Prevents Nb4} Ba6 {[%emt 0:02:35]} 18. Be1 {[%emt 0:00:52]} Qc8 {[%emt 0:03:22]} 19. Bh4 {[%emt 0:00:53]} Re8 {[%emt 0:04:22]} 20. Bxf6 {[%emt 0:10:22]} Bxf6 {[%emt 0:00:07]} 21. e5 {[%emt 0:00:17]} Be7 {[%emt 0:01:28]} 22. Ng3 {[%emt 0:00:02]} Ra7 {[%emt 0:03:14]} 23. Ne4 {[%emt 0:00:40]} Nb8 {[%emt 0:02:14] [#]} 24. f5 $1 {[%emt 0:11:03]} exf5 {[%emt 0:01:22] White leaves nothing to chance now.} (24... Nd7 25. dxc4) 25. gxf5 {[%emt 0:00:01][%cal Oe5e6]} gxf5 {[%emt 0:00:18]} (25... Kh8 $16 26. e6 fxe6) 26. Ng3 {[%emt 0:03:05]} (26. Qh5 $1 $18 {and the rest is easy.}) 26... Qe6 {[%emt 0:00:48]} (26... Kh8 $16) 27. Nxf5 $18 {[%emt 0:00:41]} (27. Rxf5 Nd7 28. Qh5 cxd3) 27... Kh8 {[%emt 0:01:00] [#]} 28. Ng4 $1 {[%emt 0:01:43]} (28. Nxd4 Bc5 29. c3 Qxe5 $11 (29... Bxd4+ $2 30. cxd4 Bb7 31. Rf6 $18)) 28... cxb3 {[%emt 0:00:18]} 29. cxb3 {[%emt 0:01:13][%cal Of5e7]} Rg8 {[%emt 0:00:47]} 30. Nfh6 $1 {[%emt 0:01:23] A dynamic duo of knights.} (30. Nxd4 $2 {is the wrong capture.} Bc5 31. Kh1 (31. Rf4 $2 Bxd4+ 32. Kh1 Bxa1 $19) 31... Bxd4 $19) 30... Rg7 {[%emt 0:00:03]} (30... Rg6) 31. Qf3 $2 {[%emt 0:03:14]} (31. Rf6 Bxf6 32. exf6) 31... Bg5 {[%emt 0:00:53]} 32. Nf5 $36 {[%emt 0:00:02][%mdl 2048] White is in control.} Rg8 {[%emt 0:00:52]} (32... Rg6 $142) 33. Nd6 {[%emt 0:02:22]} ({Less strong is} 33. Nxd4 Qb6 34. Qf2 Rd7 $16) 33... Rg7 {[%emt 0:00:41]} 34. Rae1 {[%emt 0:09:47] Black must now prevent Qe4.} Rc7 $2 {[%emt 0:00:16]} (34... Bc8 35. Kh1 (35. Nxb5 Re7 $18) 35... Na6) 35. Qa8 {[%emt 0:01:06] White is clearly winning.} Rg8 {[%emt 0:00:05]} 36. Bd5 {[%emt 0:03:47]} Be3+ {[%emt 0:01:19]} 37. Kh1 {[%emt 0:03:53]} Qg6 {[%emt 0:00:18]} 38. Bxf7 {[%emt 0:09:10]} Rxf7 {[%emt 0:00:42]} 39. Nxf7+ {[%emt 0:00:42]} Kg7 {[%emt 0:00:02]} 40. Nd6 {[%emt 0:01:07]} b4 {[%emt 0:00:58]} 41. Nxe3 {[%emt 0:55:36] Weighted Error Value: White=0.30/Black=0.98  Mistake:       	White=2     	Black=5      Inaccurate:     	White=4     	Black=8      OK:         	White=9     	Black=6      Best:        	White=3     	Black=1} 1-0

[Event "4NCL Div 2 2024-25"]
[Site "England"]
[Date "2025.01.25"]
[Round "3.31"]
[White "Pilley, Jack"]
[Black "Lee, Richard W Y"]
[Result "1/2-1/2"]
[Annotator "TA"]
[ECO "B40"]
[WhiteElo "1937"]
[BlackElo "2102"]
[PlyCount "131"]
[EventDate "2024.11.23"]
[EventType "team-tourn"]
[EventCountry "ENG"]
[SourceTitle "playchess.com"]
[Source "ChessBase"]
[SourceQuality "1"]
[TimeControl "40/6000+30:3000+30"]

{[%evp 9,131,2,30,21,14,2,48,3,10,0,4,0,3,0,0,-3,0,-12,-11,-38,-28,-33,-27,-49,-45,-53,-20,-31,-21,-28,-23,-24,0,-5,-6,-10,39,-50,-44,-47,-47,-48,-41,-47,-49,-79,-54,-54,-54,-56,-62,-55,-34,-19,-23,-41,-16,-14,0,-39,-22,-25,-23,-23,-23,-16,0,-33,-30,-80,-33,-32,-24,-25,-25,-33,0,-49,0,-65,-16,-39,-18,-39,31,31,33,0,0,-25,0,0,0,0,0,0,29,0,38,24,24,0,30,0,0,0,0,0,20,0,0,-18,0,0,0,0,30,30,30,30,30,30,30,0]} 1. e4 {[%emt 0:10:03]} c5 {[%emt 0:10:17]} 2. Nf3 {[%emt 0:01:37]} e6 {[%emt 0:00:11]} 3. g3 {[%emt 0:00:01]} Nc6 {[%emt 0:01:12]} 4. Bg2 {[%emt 0:00:20]} Nf6 {[%emt 0:01:36]} 5. Qe2 {[%emt 0:00:14]} Qc7 {[%emt 0:13:57]} 6. O-O {[%emt 0:01:19] B40: Sicilian: 2...e6, Unusual lines.} Be7 {[%emt 0:02:04] is the legacy move (6...d6).} 7. c3 {[%emt 0:04:53]} d6 {[%emt 0:26:00]} (7... d5 $11) 8. d3 {[%emt 0:00:29] White is slightly better.} O-O {[%emt 0:00:52]} 9. Na3 {[%emt 0:01:18]} a6 {[%emt 0:11:41]} 10. Bf4 {[%emt 0:14:43]} b5 $146 {[%emt 0:04:51]} (10... e5 11. Bd2 Re8 12. Nh4 Be6 13. Nc2 d5 14. Nf5 Bxf5 15. exf5 h6 16. Ne3 Rad8 {½-½ Gallinnis,N (2307)-Fischdick,G (2230) BL2-West 0708 2007 (5.7)}) 11. Nc2 {[%emt 0:09:58]} Bb7 {[%emt 0:09:23]} 12. a4 {[%emt 0:07:34]} b4 {[%emt 0:05:03]} 13. Nd2 {[%emt 0:09:10]} a5 {[%emt 0:03:46]} 14. Rad1 {[%emt 0:12:14]} Rfd8 {[%emt 0:01:23]} 15. h4 {[%emt 0:06:27]} Ba6 {[%emt 0:00:58]} 16. c4 {[%emt 0:03:51]} Nd7 {[%emt 0:01:49]} 17. b3 {[%emt 0:00:35]} Bb7 {[%emt 0:02:03]} 18. Be3 {[%emt 0:02:10]} Bf6 {[%emt 0:01:31]} 19. f4 {[%emt 0:00:58]} Nd4 {[%emt 0:02:02]} 20. Bxd4 {[%emt 0:01:02]} Bxd4+ {[%emt 0:01:38]} 21. Nxd4 {[%emt 0:00:13]} cxd4 {[%emt 0:00:03]} 22. Qf2 {[%emt 0:00:19]} e5 {[%emt 0:02:57]} (22... Nf6 $11) 23. f5 {[%emt 0:00:10]} (23. fxe5 $14 Nc5 24. e6 (24. Qxd4 $2 dxe5 25. Qf2 Rxd3 $19) 24... Nxe6 25. Nf3) 23... f6 $15 {[%emt 0:00:46]} 24. g4 {[%emt 0:00:10]} Nc5 {[%emt 0:00:24]} 25. Qg3 {[%emt 0:00:35]} Bc6 {[%emt 0:01:49]} 26. Ra1 {[%emt 0:04:14]} Qe7 {[%emt 0:00:36]} 27. Kf2 {[%emt 0:01:32]} Kf8 {[%emt 0:01:02]} 28. Ke2 {[%emt 0:00:46]} Ke8 {[%emt 0:00:23]} 29. Bf3 {[%emt 0:00:43]} Kd7 {[%emt 0:01:17]} 30. g5 {[%emt 0:00:27]} Ra7 {[%emt 0:01:08]} 31. Rg1 {[%emt 0:00:17]} Kc8 {[%emt 0:00:27]} 32. Qg4 {[%emt 0:01:00]} Be8 {[%emt 0:00:35]} 33. Rg3 {[%emt 0:01:47]} Rdd7 {[%emt 0:00:41]} 34. Bh1 {[%emt 0:01:15]} Rac7 {[%emt 0:00:30]} 35. Kd1 {[%emt 0:00:50]} Qf8 {[%emt 0:01:00]} 36. Kc2 {[%emt 0:00:35]} Kb7 {[%emt 0:00:31]} 37. Bf3 {[%emt 0:03:39]} Kb6 {[%emt 0:01:09]} 38. Bd1 {[%emt 0:04:55]} Re7 {[%emt 0:00:30]} 39. Kb2 {[%emt 0:00:16]} (39. Be2 $11 {remains equal.}) 39... Rcd7 {[%emt 0:00:23]} (39... g6 $17 {Threatens to win with ...fxg5.} 40. Bc2 fxg5 41. Qxg5 h6) 40. Bc2 {[%emt 0:00:14]} Kc7 {[%emt 0:00:20]} 41. Rag1 {[%emt 0:50:09]} Kd8 {[%emt 0:26:27]} 42. Nf1 {[%emt 0:00:00]} Kc7 {[%emt 0:04:41]} 43. Nh2 {[%emt 0:00:00]} (43. Nd2 $11) 43... Kd8 {[%emt 0:00:31]} (43... g6 $15) 44. Qf3 {[%emt 0:00:00]} ({White should play} 44. Nf1 $11) 44... Rc7 {[%emt 0:01:32]} (44... Rb7 $15 {might be stronger.}) 45. Bd1 {[%emt 0:00:00]} Kc8 {[%emt 0:03:50][%cal Bd8c8,Bc8b7,Bb7b6][%mdl 32]} (45... fxg5 46. hxg5 Bxa4 47. bxa4 b3) 46. Qg2 {[%emt 0:00:00]} Nd7 {[%emt 0:02:43]} (46... fxg5 $15 47. hxg5 g6) 47. Ng4 $14 {[%emt 0:00:00]} Kb7 {[%emt 0:00:11]} 48. Be2 {[%emt 0:00:00]} Kb6 {[%emt 0:00:48]} 49. Nf2 {[%emt 0:00:00]} Kc5 {[%emt 0:02:40]} 50. Bg4 {[%emt 0:00:00]} Rb7 {[%emt 0:01:10]} 51. Bd1 {[%emt 0:00:00]} Rc7 {[%emt 0:00:19]} 52. Ng4 {[%emt 0:00:00]} Rb7 {[%emt 0:00:20]} 53. Qf2 {[%emt 0:00:00] Reckless King} (53. Qd2 {looks sharper.} Rc7 54. Kc2 Kc6 55. Kb1) 53... Kb6 {[%emt 0:01:19]} (53... h5 $5 54. Nh2 Kb6 $14) 54. Qd2 {[%emt 0:00:00]} Rc7 {[%emt 0:00:36]} 55. Rh1 {[%emt 0:00:00]} Kc5 {[%emt 0:01:47]} 56. h5 {[%emt 0:00:46]} fxg5 {[%emt 0:01:08]} 57. Qxg5 {[%emt 0:00:46]} h6 {[%emt 0:00:51]} 58. Qh4 {[%emt 0:02:09]} Rc8 {[%emt 0:02:34]} 59. Rhg1 {[%emt 0:01:31]} Rf7 {[%emt 0:00:33]} 60. Qh2 {[%emt 0:00:54]} Qe7 {[%emt 0:00:22]} 61. Nf2 {[%emt 0:01:22]} Nf6 {[%emt 0:00:59]} 62. Ng4 {[%emt 0:01:03]} Nxg4 {[%emt 0:03:18]} 63. Rxg4 {[%emt 0:00:17] White has an edge.} Rc7 {[%emt 0:00:41]} 64. Qg3 {[%emt 0:00:32]} Qf8 {[%emt 0:00:35]} 65. Qh4 {[%emt 0:00:59]} Qe7 {[%emt 0:00:44]} 66. Qg3 {[%emt 0:00:07] Weighted Error Value: White=0.13 (very precise) /Black=0.14 (very precise)   Mistake:       	White=4     	Black=6      Inaccurate:     	White=9     	Black=6      OK:         	White=16    	Black=14     Best:        	---       	Black=1} 1/2-1/2

[Event "4NCL Div 2 2024-25"]
[Site "England"]
[Date "2025.01.25"]
[Round "3.32"]
[White "Starley, Robert"]
[Black "Barwick, Carmel"]
[Result "1/2-1/2"]
[Annotator "NA COMBH"]
[ECO "B45"]
[WhiteElo "2036"]
[BlackElo "1895"]
[PlyCount "135"]
[EventDate "2024.11.23"]
[EventType "team-tourn"]
[EventCountry "ENG"]
[SourceTitle "playchess.com"]
[Source "ChessBase"]
[SourceQuality "1"]
[TimeControl "40/6000+30:3000+30"]

1. e4 {[%emt 0:10:03]} c5 {[%emt 0:10:06]} 2. Nf3 {[%emt 0:00:04]} e6 {[%emt 0:00:09]} 3. d4 {[%emt 0:00:06]} cxd4 {[%emt 0:00:04]} 4. Nxd4 {[%emt 0:00:05]} Nf6 {[%emt 0:00:12]} 5. Nc3 {[%emt 0:00:16]} Nc6 {[%emt 0:00:07]} 6. Be3 {[%emt 0:01:01]} Bb4 {[%emt 0:00:47]} 7. f3 {[%emt 0:00:45]} d5 {[%emt 0:00:21]} 8. exd5 {[%emt 0:01:54]} Nxd5 {[%emt 0:00:55]} 9. Nxc6 {[%emt 0:00:27]} bxc6 {[%emt 0:00:16]} 10. Bd2 {[%emt 0:01:13]} Nxc3 {[%emt 0:07:07]} 11. Bxc3 {[%emt 0:01:30]} Bxc3+ {[%emt 0:01:25]} 12. bxc3 {[%emt 0:00:04]} Qa5 {[%emt 0:04:36]} 13. Qd4 {[%emt 0:01:27]} O-O {[%emt 0:06:16]} 14. Bd3 {[%emt 0:04:30]} Ba6 {[%emt 0:19:17]} 15. Bxa6 {[%emt 0:08:00]} Qxa6 {[%emt 0:00:07]} 16. Qd3 {[%emt 0:00:27]} Qb6 {[%emt 0:06:42]} 17. Ke2 {[%emt 0:04:08]} Rfd8 {[%emt 0:03:59]} 18. Qc4 {[%emt 0:01:04]} Rd5 {[%emt 0:10:52]} 19. Rhd1 {[%emt 0:04:27]} h6 {[%emt 0:13:11]} 20. Rab1 {[%emt 0:01:53]} Qc7 {[%emt 0:03:39]} 21. Rxd5 {[%emt 0:14:58]} exd5 {[%emt 0:00:13]} 22. Qh4 {[%emt 0:01:20]} Qa5 {[%emt 0:04:39]} 23. Kd2 {[%emt 0:01:37]} Qxa2 {[%emt 0:01:54]} 24. Rb7 {[%emt 0:00:13]} Qa3 {[%emt 0:07:41]} 25. Qf4 {[%emt 0:01:27]} Rf8 {[%emt 0:00:51]} 26. Qb4 {[%emt 0:04:25]} Qa6 {[%emt 0:01:46]} 27. Rb8 {[%emt 0:04:58]} Rxb8 {[%emt 0:01:10]} 28. Qxb8+ {[%emt 0:00:04]} Kh7 {[%emt 0:00:04]} 29. Qc7 {[%emt 0:00:45]} f6 {[%emt 0:02:18]} 30. Qd7 {[%emt 0:01:01]} Qc4 {[%emt 0:02:44]} 31. g3 {[%emt 0:03:19]} a5 {[%emt 0:00:49]} 32. Qf5+ {[%emt 0:00:39]} Kg8 {[%emt 0:00:13]} 33. Qc8+ {[%emt 0:00:25]} Kh7 {[%emt 0:00:41]} 34. Qf5+ {[%emt 0:00:09]} Kg8 {[%emt 0:00:05]} 35. Qc8+ {[%emt 0:00:08]} Kf7 {[%emt 0:00:04]} 36. Qc7+ {[%emt 0:00:25]} Kg6 {[%emt 0:01:09]} 37. Qxa5 {[%emt 0:00:54]} Qf1 {[%emt 0:00:26]} 38. Qc5 {[%emt 0:03:07]} Qg2+ {[%emt 0:00:41]} 39. Kc1 {[%emt 0:00:24]} Qxh2 {[%emt 0:01:24]} 40. Qxc6 {[%emt 0:00:27]} Qh1+ {[%emt 0:00:46]} 41. Kb2 {[%emt 0:50:07]} Qd1 {[%emt 0:33:14]} 42. Qe8+ {[%emt 0:00:00]} Kh7 {[%emt 0:01:26]} 43. Qe3 {[%emt 0:00:00]} Kg8 {[%emt 0:01:03]} 44. g4 {[%emt 0:00:00]} Kf7 {[%emt 0:01:11]} 45. Qa7+ {[%emt 0:00:00]} Ke6 {[%emt 0:02:34]} 46. Qe3+ {[%emt 0:00:00]} Kf7 {[%emt 0:01:28]} 47. Qf4 {[%emt 0:00:00]} Qe2 {[%emt 0:01:26]} 48. Qf5 {[%emt 0:00:00]} Qb5+ {[%emt 0:00:32]} 49. Kc1 {[%emt 0:00:00]} Qf1+ {[%emt 0:03:33]} 50. Kd2 {[%emt 0:00:00]} Qf2+ {[%emt 0:03:01]} 51. Kd3 {[%emt 0:00:00]} Qf1+ {[%emt 0:00:28]} 52. Ke3 {[%emt 0:00:00]} Qe1+ {[%emt 0:00:51]} 53. Kd4 {[%emt 0:00:00]} Qd2+ {[%emt 0:00:41]} 54. Kc5 {[%emt 0:00:00]} Qxc3+ {[%emt 0:01:01]} 55. Kxd5 {[%emt 0:00:00]} Qa5+ {[%emt 0:01:04]} 56. Ke4 {[%emt 0:00:00]} Qe1+ {[%emt 0:00:50]} 57. Kd4 {[%emt 0:00:00]} Qd2+ {[%emt 0:00:42]} 58. Kc4 {[%emt 0:00:00]} Qe2+ {[%emt 0:02:38]} 59. Kb4 {[%emt 0:00:00]} Qe7+ {[%emt 0:00:19]} 60. Ka4 {[%emt 0:00:00]} Qa7+ {[%emt 0:00:13]} 61. Kb5 {[%emt 0:00:00]} Qb7+ {[%emt 0:00:15]} 62. Kc5 {[%emt 0:00:00]} Qa7+ {[%emt 0:00:39]} 63. Kc4 {[%emt 0:00:00]} Qc7+ {[%emt 0:00:19]} 64. Kd4 {[%emt 0:00:00]} Qb6+ {[%emt 0:01:48]} 65. Ke4 {[%emt 0:02:20]} Qb4+ {[%emt 0:00:43]} 66. Ke3 {[%emt 0:00:28]} Qe1+ {[%emt 0:00:15]} 67. Kd3 {[%emt 0:00:15]} Qd1+ {[%emt 0:00:39]} 68. Ke3 {[%emt 0:47:11]} 1/2-1/2